bitfinex/quotes_ETHUSD_20260202
["timestamp","ask_amount","ask_price","bid_price","bid_amount"]
[1770075936978,16.51361148,2352.9,2352.2,13.82166656]
[1770075937180,0.91795558,2352.8,2352.2,13.82166656]
[1770075937498,0.91795558,2352.7,2352.2,13.82166656]
[1770075937674,0.91795558,2352.6,2352.2,13.82166656]
[1770075937874,14.39078932,2352.9,2352.3,1.38216666]
[1770075938102,0.91804913,2352.8,2352.3,1.38216666]
[1770075938294,0.91804913,2352.7,2352.3,1.38216666]
[1770075938470,13.24317302,2352.9,2352.3,1.38216666]
[1770075938673,0.91796772,2352.8,2352.3,1.38216666]
[1770075938881,0.91796772,2352.7,2352.3,1.38216666]
[1770075939082,13.24317302,2352.9,2352.3,1.38216666]
[1770075939281,0.91794018,2352.8,2352.3,1.38216666]
[1770075939592,0.91794914,2352.7,2352.3,1.38216666]
[1770075939783,13.24317302,2352.9,2352.3,1.38216666]
[1770075939985,0.91818891,2352.8,2352.3,12.38743139]
[1770075940185,0.91818891,2352.7,2352.3,12.38743139]
[1770075940390,0.51722788,2352.9,2352.3,12.38743139]
[1770075940586,0.91818507,2352.8,2352.3,12.38743139]
[1770075940790,0.91818507,2352.7,2352.3,13.62617453]
[1770075940991,0.51722788,2352.9,2352.3,13.62617453]
[1770075941193,0.91818278,2352.8,2352.3,13.62617453]
[1770075941403,0.91818278,2352.7,2352.3,13.62617453]
[1770075941717,0.51722788,2352.9,2352.3,13.62617453]
[1770075941876,0.91814489,2352.8,2352.3,12.38743139]
[1770075942076,0.91814489,2352.7,2352.3,12.38743139]
[1770075942316,2.06264651,2352.9,2352.3,12.38743139]
[1770075942604,0.91813041,2352.8,2352.3,12.38743139]
[1770075942901,0.91813041,2352.7,2352.3,12.38743139]
[1770075943077,13.24317302,2352.9,2352.3,12.38743139]
[1770075943272,0.91807045,2352.8,2352.3,12.38743139]
[1770075943578,0.91807045,2352.7,2352.0,1.95491556]
[1770075943781,12.72594514,2352.8,2352.1,13.34382435]
[1770075944274,0.9180237,2352.7,2352.1,13.34382435]
[1770075944497,12.72594514,2352.8,2352.1,13.34382435]
[1770075944701,0.91802583,2352.7,2352.1,13.34382435]
[1770075944997,12.72594514,2352.8,2352.1,13.34382435]
[1770075945181,0.91804358,2352.7,2352.2,1.52987399]
[1770075945387,12.72594514,2352.8,2352.2,1.52987399]
[1770075945604,13.64396865,2352.7,2352.0,0.001]
[1770075945908,12.72594514,2352.7,2352.0,0.001]
[1770075947203,0.91813386,2352.6,2352.0,0.001]
[1770075947504,12.72594514,2352.7,2352.0,0.001]
[1770075947686,0.91813398,2352.6,2352.0,0.001]
[1770075947872,12.72594514,2352.7,2352.0,0.001]
[1770075948206,2.1907285,2352.6,2352.3,0.001]
[1770075948414,1.27369451,2352.6,2352.3,0.001]
[1770075952120,13.57472116,2352.6,2352.3,0.001]
[1770075953301,1.27369451,2352.6,2352.3,0.001]
[1770075960494,0.9195289,2352.5,2352.3,0.001]
[1770075960821,1.27369451,2352.6,2352.3,0.001]
[1770075961326,0.91949731,2352.5,2352.3,0.001]
[1770075961619,1.27369451,2352.6,2352.3,0.001]
[1770075961829,0.0011,2352.6,2352.3,0.001]
[1770075962394,0.0011,2352.6,2352.5,0.001]
[1770075962692,0.92057988,2352.6,2352.5,0.001]
[1770075968635,0.0011,2352.8,2352.5,0.001]
[1770075968799,0.0011,2352.8,2352.5,1.23438842]
[1770075969306,0.0011,2352.8,2352.5,0.001]
[1770075976316,0.0011,2352.8,2352.7,0.001]
[1770075980409,12.19439842,2352.8,2352.5,0.001]
[1770075980847,0.0011,2352.8,2352.5,0.001]
[1770075984345,13.11210682,2352.7,2352.3,0.001]
[1770075984551,11.05150402,2352.7,2352.3,0.001]
[1770075987524,0.01387465,2352.8,2352.3,0.001]
[1770075989650,1.07644443,2352.8,2352.3,0.001]
[1770075989866,13.26974285,2352.8,2352.3,0.001]
[1770075990035,1.44171793,2352.7,2352.3,0.001]
[1770075990357,1.44171793,2352.7,2352.5,0.001]
[1770075990543,0.0011,2352.6,2352.5,0.001]
[1770075991647,12.19439842,2352.6,2352.5,0.001]
[1770075992437,0.0011,2352.6,2352.5,0.001]
[1770075995924,0.0011,2352.8,2352.5,12.22159815]
[1770075996154,0.0011,2352.8,2352.6,13.44275796]
[1770075996348,0.0011,2352.8,2352.6,1.22215981]
[1770075999329,13.25685434,2353.1,2352.6,1.22215981]
[1770075999555,0.91871455,2353.0,2352.5,0.001]
[1770075999755,0.91871455,2352.9,2352.5,0.001]
[1770075999957,13.25685434,2353.1,2352.5,0.001]
[1770076000127,0.91871468,2353.0,2352.5,0.001]
[1770076000328,0.91871468,2352.9,2352.5,0.001]
[1770076000530,13.25685434,2353.1,2352.5,0.001]
[1770076000758,0.91872084,2353.0,2352.5,0.001]
[1770076000964,0.91872084,2352.9,2352.5,0.001]
[1770076001127,15.27604103,2353.1,2352.5,0.001]
[1770076001334,0.91872084,2353.0,2352.5,0.001]
[1770076001544,0.91872084,2352.9,2352.5,12.22159815]
[1770076001748,0.0011,2353.1,2352.6,1.22215981]
[1770076001949,0.91871049,2353.0,2352.5,12.22159815]
[1770076002144,14.41593428,2353.2,2352.7,0.001]
[1770076002566,0.0011,2352.9,2352.7,0.001]
[1770076005064,0.0011,2352.8,2352.7,0.001]
[1770076016258,0.0011,2353.1,2352.7,12.16102938]
[1770076016480,0.0011,2353.1,2352.8,13.37623232]
[1770076016682,0.0011,2353.1,2352.8,12.16002938]
[1770076018283,0.0011,2353.1,2352.7,0.001]
[1770076018880,0.0011,2353.1,2352.7,12.16102938]
[1770076022766,0.0011,2353.1,2352.7,0.001]
[1770076023298,11.73515013,2353.1,2352.7,0.001]
[1770076023466,12.90877514,2353.1,2352.7,0.001]
[1770076024282,1.17472501,2353.1,2352.7,0.001]
[1770076025091,0.0011,2353.1,2352.7,12.16102938]
[1770076025560,12.79758074,2353.1,2352.7,0.001]
[1770076025766,11.73515013,2353.1,2352.7,0.001]
[1770076026760,0.0011,2353.5,2353.1,12.16002938]
[1770076026975,0.0011,2353.5,2353.2,1.97766974]
[1770076027177,0.0011,2353.5,2352.9,13.05202938]
[1770076028196,0.0011,2353.5,2352.9,14.11453861]
[1770076030493,0.0011,2353.5,2352.9,13.05202938]
[1770076030687,0.0011,2353.5,2352.9,14.11454434]
[1770076032100,11.73515013,2353.5,2352.9,0.001]
[1770076032412,1.17351501,2353.4,2352.9,12.16102938]
[1770076032597,0.0011,2353.5,2352.9,12.16102938]
[1770076035501,0.38415606,2353.7,2353.3,12.16002938]
[1770076035806,0.38415606,2353.7,2353.3,13.05102938]
[1770076035983,0.38415606,2353.7,2353.3,0.891]
[1770076037267,0.38415606,2353.7,2353.3,13.05102938]
[1770076037468,0.38415606,2353.7,2353.4,1.30510294]
[1770076039914,0.0011,2353.5,2353.4,1.30510294]
[1770076040209,0.0011,2353.5,2353.4,13.41734071]
[1770076043082,0.0011,2353.5,2353.4,1.30510294]
[1770076043912,0.0011,2353.5,2353.1,0.001]
[1770076044214,0.0011,2353.5,2353.4,0.891]
[1770076046911,0.38415606,2353.7,2353.4,13.00323777]
[1770076047112,0.38415606,2353.7,2353.4,0.891]
[1770076047432,0.0011,2353.8,2353.4,0.891]
[1770076047714,1.06202595,2354.0,2353.5,1.30032378]
[1770076047915,1.06202595,2354.0,2353.4,0.891]
[1770076049018,13.36444219,2354.1,2353.4,0.891]
[1770076051014,13.36444219,2354.1,2353.4,13.00323777]
[1770076051888,13.36444219,2354.1,2353.6,0.001]
[1770076052189,0.0011,2353.9,2353.6,0.001]
[1770076053526,0.0011,2353.9,2353.6,12.11323777]
[1770076053731,0.0011,2353.9,2353.7,1.21132378]
[1770076054817,0.0011,2353.9,2353.7,13.32356155]
[1770076056249,0.0011,2353.9,2353.6,0.001]
[1770076056404,12.30244118,2353.9,2353.6,0.001]
[1770076057511,12.30244118,2353.9,2353.4,0.77397589]
[1770076057935,13.21920567,2353.8,2353.1,0.001]
[1770076058110,11.21149636,2353.6,2353.1,0.001]
[1770076058622,2.08186961,2353.7,2353.1,0.001]
[1770076059003,15.44537442,2353.7,2353.1,0.001]
[1770076059204,12.30134118,2353.6,2353.1,0.001]
[1770076062305,0.0011,2353.9,2353.1,12.11323777]
[1770076062504,0.0011,2353.9,2353.3,12.11223777]
[1770076064813,0.0011,2353.9,2353.4,12.12501242]
[1770076066138,0.0011,2353.7,2353.4,12.12501242]
[1770076067347,0.0011,2354.1,2353.5,12.11223777]
[1770076067642,0.0011,2354.1,2353.6,13.08420089]
[1770076071261,12.82393063,2354.1,2353.6,0.97196312]
[1770076071433,12.82393063,2354.1,2353.3,0.892]
[1770076071761,12.82393063,2354.1,2353.3,12.81773873]
[1770076072514,12.82393063,2354.1,2353.3,0.892]
[1770076072952,12.82283063,2353.9,2353.3,0.001]
[1770076074229,12.82120753,2353.9,2353.3,0.001]
[1770076075364,12.82120753,2353.9,2353.1,11.92673873]
[1770076075365,13.74095494,2353.8,2353.1,0.001]
[1770076075660,12.82283063,2353.6,2353.1,0.001]
[1770076077750,13.88504356,2353.6,2353.1,0.001]
[1770076078463,12.82283063,2353.8,2353.1,0.001]
[1770076078651,13.74068275,2353.7,2353.1,0.001]
[1770076078852,12.82283063,2353.7,2353.1,0.001]
[1770076080076,15.96455954,2353.7,2353.1,0.001]
[1770076080574,15.96455954,2353.7,2353.3,0.001]
[1770076082236,15.96455954,2353.7,2353.1,0.001]
[1770076082473,13.74042624,2353.6,2353.0,0.001]
[1770076082645,12.82283063,2353.4,2352.9,0.001]
[1770076082843,12.82122969,2353.4,2352.9,0.001]
[1770076083077,12.81988662,2353.4,2352.9,0.001]
[1770076084146,13.88516862,2353.3,2352.9,0.001]
[1770076085682,12.82283063,2353.2,2352.7,0.001]
[1770076085982,12.82283063,2353.2,2352.5,0.001]
[1770076085983,12.82283063,2353.0,2352.5,0.001]
[1770076086164,14.77634194,2353.0,2352.5,0.001]
[1770076092875,14.77634194,2353.0,2352.7,0.001]
[1770076093062,0.0011,2352.8,2352.7,0.001]
[1770076095280,12.82393063,2352.8,2352.5,0.001]
[1770076095868,0.0011,2352.8,2352.5,0.001]
[1770076096691,12.82393063,2352.8,2352.3,0.001]
[1770076096991,15.16784801,2352.7,2352.3,0.001]
[1770076097164,2.34501738,2352.7,2352.3,0.001]
[1770076101781,2.34500543,2352.7,2352.3,0.001]
[1770076101974,0.8921,2352.8,2352.4,12.90272787]
[1770076102493,1.9546742,2352.8,2352.4,12.90272787]
[1770076102702,1.9546742,2352.8,2352.4,0.001]
[1770076102900,12.66907515,2352.6,2352.1,0.001]
[1770076103067,12.31480254,2352.4,2352.0,0.001]
[1770076103769,1.06278961,2352.3,2352.0,0.001]
[1770076104499,1.06278125,2352.4,2352.0,0.001]
[1770076106080,1.06278125,2352.4,2352.3,0.001]
[1770076106283,1.06278125,2352.4,2352.0,0.001]
[1770076106490,3.06391579,2352.4,2352.0,0.001]
[1770076107187,3.95491579,2352.4,2352.0,0.001]
[1770076110810,12.66907515,2352.2,2351.8,0.001]
[1770076113309,1.06287997,2352.1,2351.8,0.001]
[1770076113510,2.70310681,2352.1,2351.8,0.001]
[1770076115730,13.56007515,2352.0,2351.7,0.001]
[1770076115887,13.56007515,2352.0,2351.3,0.001]
[1770076116228,0.891,2352.0,2351.4,12.90172787]
[1770076117297,2.94245384,2352.0,2351.4,12.90172787]
[1770076118119,4.0053804,2352.0,2351.4,12.90172787]
[1770076118611,16.67445555,2352.0,2351.3,0.001]
[1770076119198,12.66907515,2351.8,2351.3,0.001]
[1770076119401,12.66907515,2351.6,2351.3,0.001]
[1770076119599,15.58758558,2351.5,2350.8,12.90272787]
[1770076120087,13.73227154,2351.4,2350.8,0.001]
[1770076120288,12.66907515,2351.2,2350.8,0.001]
[1770076120905,13.56007515,2351.1,2350.8,0.001]
[1770076121220,12.66907515,2351.0,2350.2,12.90172787]
[1770076121428,8.4970291,2351.1,2350.2,12.90172787]
[1770076121429,14.78568558,2350.9,2350.2,12.90172787]
[1770076122435,14.78568558,2350.9,2349.7,1.06393035]
[1770076122436,20.27510425,2350.3,2349.5,12.90172787]
[1770076122588,0.892,2350.2,2349.5,12.90172787]
[1770076123096,12.66907515,2350.1,2349.1,12.90172787]
[1770076123304,1.35610752,2350.0,2349.1,12.90172787]
[1770076123620,0.892,2350.2,2349.1,12.90172787]
[1770076124218,1.06378451,2350.1,2349.1,12.90172787]
[1770076125113,12.66907515,2349.8,2348.9,14.18104283]
[1770076125326,0.892,2349.9,2348.9,12.90172787]
[1770076125616,1.16213945,2349.9,2349.1,12.90172787]
[1770076125824,12.66907515,2349.7,2348.9,12.90172787]
[1770076126324,1.06392033,2349.8,2348.9,12.90172787]
[1770076126495,21.33902458,2349.8,2348.9,12.90172787]
[1770076126689,12.66907515,2349.6,2348.6,12.90172787]
[1770076127307,3.5304436,2349.7,2348.8,12.90172787]
[1770076127891,16.19951875,2349.7,2348.8,12.90172787]
[1770076128096,12.66907515,2349.6,2348.8,12.90172787]
[1770076128291,13.73311475,2349.6,2348.8,12.90172787]
[1770076128504,2.15194314,2349.5,2348.8,12.90172787]
[1770076128904,14.82101829,2349.5,2348.6,12.90172787]
[1770076129107,2.15194314,2349.5,2348.6,12.90172787]
[1770076129309,20.45539179,2349.7,2348.5,8.6705266]
[1770076129310,3.5304436,2349.7,2349.0,12.90172787]
[1770076129606,0.85477634,2349.7,2349.0,12.90172787]
[1770076130296,1.06381698,2350.1,2349.2,12.05835678]
[1770076130924,1.06364874,2350.4,2349.6,12.05835678]
[1770076131108,0.35437123,2350.5,2349.8,12.05835678]
[1770076131311,0.35437123,2350.5,2349.6,1.96643859]
[1770076131312,14.35982051,2350.5,2349.6,14.02479537]
[1770076131516,14.35982051,2350.5,2349.3,7.6060291]
[1770076131517,14.35982051,2350.5,2349.3,19.66438588]
[1770076131697,14.35982051,2350.5,2349.4,12.05835678]
[1770076132326,1.41798061,2350.5,2349.6,12.05835678]
[1770076136115,14.35982051,2350.5,2349.6,12.05835678]
[1770076137834,0.35437123,2350.5,2349.6,13.12235383]
[1770076138003,0.35437123,2350.5,2349.8,12.05835678]
[1770076142460,1.41798247,2350.5,2349.8,12.05835678]
[1770076142740,14.35982237,2350.5,2349.5,12.05835678]
[1770076144242,14.35982237,2350.5,2349.8,0.001]
[1770076144447,0.0011,2350.3,2349.8,0.001]
[1770076144748,1.43719224,2350.3,2349.8,0.001]
[1770076146443,14.37903214,2350.3,2349.8,0.001]
[1770076148259,0.0011,2350.3,2349.8,12.05935678]
[1770076148409,0.35547123,2350.5,2349.8,13.12327377]
[1770076148615,0.35547123,2350.5,2350.0,12.05835678]
[1770076149559,14.36091776,2350.5,2349.8,0.001]
[1770076149716,14.80337307,2350.4,2349.8,0.001]
[1770076150449,15.86704051,2350.4,2349.8,0.001]
[1770076150818,14.80337307,2350.4,2349.8,0.001]
[1770076156056,15.86702844,2350.4,2349.8,0.001]
[1770076156352,14.80337307,2350.4,2349.8,0.001]
[1770076156923,0.35547123,2350.5,2349.8,13.26529246]
[1770076157553,0.35547123,2350.5,2349.9,12.05935678]
[1770076157855,0.0011,2350.2,2349.9,12.05935678]
[1770076158651,0.0011,2350.4,2350.0,12.05835678]
[1770076158947,0.0011,2350.4,2350.0,13.79682451]
[1770076159821,12.9418399,2350.3,2349.9,0.001]
[1770076160324,0.91795359,2350.2,2349.9,0.001]
[1770076160526,12.9418399,2350.3,2349.9,0.001]
[1770076160749,11.85019368,2350.1,2349.6,0.001]
[1770076161054,11.85019368,2350.1,2349.5,0.001]
[1770076161055,1.06392033,2349.8,2349.5,0.001]
[1770076161756,1.14472463,2350.2,2349.5,12.65154268]
[1770076162062,13.37540473,2350.4,2349.5,12.65154268]
[1770076162063,1.06371554,2350.3,2349.7,12.64954268]
[1770076162227,0.91728999,2350.2,2349.7,12.64954268]
[1770076162428,1.06371554,2350.3,2349.7,12.64954268]
[1770076162729,1.44920282,2350.2,2349.7,12.64954268]
[1770076162923,1.06371554,2350.3,2349.7,12.64954268]
[1770076163126,0.91722549,2350.2,2349.7,12.64954268]
[1770076163324,1.06477996,2350.4,2349.8,12.65054268]
[1770076163542,0.91716451,2350.3,2349.8,12.65054268]
[1770076163754,0.91716451,2350.2,2349.8,12.65054268]
[1770076164055,1.06477996,2350.4,2349.8,12.65054268]
[1770076164257,1.59909292,2350.3,2349.8,12.65054268]
[1770076164555,0.681943,2350.3,2349.8,12.65054268]
[1770076164726,1.06475688,2350.4,2349.8,12.65054268]
[1770076165023,0.91715192,2350.3,2349.8,12.65054268]
[1770076165225,1.06475688,2350.4,2349.8,12.65054268]
[1770076165424,0.91712676,2350.3,2349.8,12.65054268]
[1770076165621,1.06475688,2350.4,2349.8,12.65054268]
[1770076165828,2.669612,2350.3,2349.8,12.65054268]
[1770076166027,1.75248607,2350.3,2349.8,12.65054268]
[1770076166767,0.0011,2350.4,2349.8,12.65054268]
[1770076166952,0.0011,2350.4,2349.8,12.64954268]
[1770076167867,0.0011,2350.4,2350.0,12.64954268]
[1770076169038,0.0011,2350.4,2350.1,12.65054268]
[1770076169237,0.0011,2350.4,2350.1,12.64954268]
[1770076169439,0.0011,2350.4,2350.1,12.65054268]
[1770076169665,0.0011,2350.4,2350.1,0.001]
[1770076171975,0.0011,2350.2,2350.1,0.001]
[1770076172479,0.0011,2350.2,2350.0,12.64954268]
[1770076172640,0.0011,2350.2,2350.0,12.65054268]
[1770076174671,0.0011,2350.2,2350.0,0.001]
[1770076174965,0.0011,2350.2,2349.8,0.001]
[1770076175267,0.0011,2350.2,2349.8,12.65054268]
[1770076175581,0.0011,2350.2,2349.8,14.02199702]
[1770076175764,0.0011,2350.2,2349.8,12.65054268]
[1770076179659,0.0011,2350.2,2349.8,12.60054268]
[1770076181265,0.0011,2350.2,2349.6,12.64954268]
[1770076181468,0.0011,2350.2,2349.6,12.65054268]
[1770076183479,0.0011,2350.2,2349.8,0.001]
[1770076183674,0.0011,2350.0,2349.8,0.001]
[1770076184166,0.0011,2350.0,2349.6,12.60154268]
[1770076184367,0.0011,2350.0,2349.7,14.01620017]
[1770076193780,0.0011,2350.4,2349.8,12.40206601]
[1770076194176,12.42166038,2350.4,2349.7,1.36765749]
[1770076194365,12.42166038,2350.4,2349.7,0.001]
[1770076195648,12.42056038,2350.0,2349.8,0.001]
[1770076195880,12.42056038,2350.0,2349.5,0.002]
[1770076196081,0.0011,2349.8,2349.5,0.002]
[1770076196989,0.0011,2349.8,2349.5,0.001]
[1770076197164,1.3497616,2349.8,2349.5,0.001]
[1770076198690,14.83424292,2349.8,2348.9,13.29406601]
[1770076199060,13.77032198,2349.8,2348.9,13.29406601]
[1770076199702,14.83426749,2349.8,2348.9,13.29406601]
[1770076199896,2.67116452,2349.7,2348.9,13.29406601]
[1770076200117,15.0917249,2349.7,2348.9,13.29406601]
[1770076200388,16.15569481,2349.7,2348.9,13.29406601]
[1770076200961,12.42056038,2349.2,2348.8,0.001]
[1770076201164,1.99245216,2349.1,2348.8,0.002]
[1770076201663,1.99245216,2349.1,2348.8,0.001]
[1770076201664,14.41301254,2349.1,2348.8,0.001]
[1770076202196,14.41301254,2349.1,2347.5,2.14748009]
[1770076202197,12.42056038,2348.8,2347.4,0.22226607]
[1770076202361,12.42056038,2348.8,2347.5,0.001]
[1770076202362,7.62185783,2347.9,2347.5,0.001]
[1770076202562,12.42056038,2347.8,2347.2,0.001]
[1770076202797,12.42056038,2347.8,2347.0,0.001]
[1770076203184,20.04241821,2347.7,2347.0,0.001]
[1770076203491,12.42056038,2347.7,2347.0,0.001]
[1770076203693,14.53128086,2347.7,2347.0,0.001]
[1770076204133,12.42056038,2347.0,2346.1,12.40206601]
[1770076204694,12.42056038,2347.5,2346.3,12.40206601]
[1770076205215,12.42056038,2347.6,2346.3,12.40206601]
[1770076205414,13.9801784,2347.5,2346.5,12.40206601]
[1770076206689,13.9801784,2347.5,2346.7,12.40206601]
[1770076206889,1.55961802,2347.5,2346.7,12.40206601]
[1770076207091,0.52125089,2347.9,2346.7,12.40206601]
[1770076207315,0.52125089,2347.9,2347.0,12.40206601]
[1770076207514,0.52125089,2347.9,2347.0,13.29506601]
[1770076207726,15.18826545,2348.7,2347.4,12.40206601]
[1770076208024,13.48485305,2349.0,2347.6,12.40206601]
[1770076208210,1.06425354,2349.1,2347.6,12.40206601]
[1770076208410,13.48481392,2349.1,2347.6,12.40206601]
[1770076208792,13.48481392,2349.1,2347.8,12.40206601]
[1770076210525,13.48481392,2349.1,2347.8,13.29506601]
[1770076210821,1.06432798,2348.9,2348.0,12.40206601]
[1770076211026,14.83335815,2349.0,2348.0,12.40206601]
[1770076211624,13.76904177,2349.0,2348.0,13.46679566]
[1770076212027,14.83332834,2349.0,2348.0,12.40206601]
[1770076212911,14.83332834,2349.0,2347.9,1.4359938]
[1770076213221,14.83332834,2349.0,2347.8,0.893]
[1770076213222,12.42056038,2348.8,2347.8,0.893]
[1770076213529,12.42056038,2348.8,2347.9,1.06477846]
[1770076213714,1.90903864,2348.9,2348.0,12.40206601]
[1770076215433,2.97337145,2348.9,2348.0,12.40206601]
[1770076216828,1.34848139,2349.0,2348.0,13.46679754]
[1770076217030,12.42056038,2349.1,2348.0,13.46679754]
[1770076217627,12.42056038,2349.3,2348.0,13.46679754]
[1770076218000,13.48470957,2349.3,2348.0,13.46679754]
[1770076218200,13.48470913,2349.3,2348.0,13.46679754]
[1770076219029,0.893,2349.4,2348.0,13.46679754]
[1770076219232,1.95710462,2349.4,2348.2,12.40206601]
[1770076219600,14.377665,2349.4,2348.2,12.40206601]
[1770076220214,13.484665,2349.4,2348.2,12.40206601]
[1770076221033,0.0011,2349.2,2348.2,12.40206601]
[1770076221203,0.0011,2349.2,2348.4,12.41262344]
[1770076223100,0.0011,2349.2,2348.6,12.41262344]
[1770076225329,0.0011,2349.2,2348.6,13.47707224]
[1770076226747,0.0011,2349.2,2348.6,12.41262344]
[1770076227663,0.0011,2349.2,2348.5,13.47712527]
[1770076227851,0.0011,2349.2,2348.6,14.82479047]
[1770076229850,0.0011,2349.2,2348.6,13.76033597]
[1770076230613,0.0011,2349.2,2348.6,14.82479566]
[1770076231018,0.0011,2349.2,2348.6,13.76033597]
[1770076231213,0.0011,2349.2,2348.6,14.82479759]
[1770076231420,0.0011,2349.2,2348.7,12.83748504]
[1770076231822,0.0011,2349.2,2348.7,13.90187551]
[1770076232652,0.0011,2349.2,2348.7,12.83748504]
[1770076233852,12.39567109,2349.2,2348.7,0.4248616]
[1770076234045,12.39567109,2349.2,2348.4,1.95753607]
[1770076234240,0.0011,2349.0,2348.5,1.06450676]
[1770076234818,0.0011,2349.0,2348.4,13.30562344]
[1770076236352,0.0011,2349.0,2348.4,14.37017555]
[1770076244361,0.0011,2349.0,2348.5,12.41262344]
[1770076245443,0.0011,2349.0,2348.5,13.47709823]
[1770076248367,0.0011,2348.8,2348.5,13.47709823]
[1770076249566,1.45090393,2349.7,2348.7,12.41262344]
[1770076249771,0.32058031,2349.7,2348.7,12.41262344]
[1770076250148,12.70985585,2349.7,2348.8,1.06437329]
[1770076250343,12.70985585,2349.7,2348.9,15.17481785]
[1770076252874,12.70985585,2349.7,2349.0,12.50836886]
[1770076253072,12.70985585,2349.7,2348.9,2.66644899]
[1770076253247,0.91649589,2349.6,2348.9,2.66644899]
[1770076253445,12.38927554,2349.5,2348.9,3.73077455]
[1770076253654,12.38927554,2349.5,2348.9,1.95732556]
[1770076255166,12.70985585,2349.7,2348.9,14.46569442]
[1770076258365,12.70985585,2349.7,2348.9,0.893]
[1770076258669,12.70985585,2349.7,2348.9,1.95732152]
[1770076259562,12.70985585,2349.7,2348.9,1.06432152]
[1770076261256,1.27109558,2349.6,2348.9,1.06432152]
[1770076261469,12.38927554,2349.6,2349.1,0.001]
[1770076261775,12.39037554,2349.5,2349.1,0.001]
[1770076262178,12.39037554,2349.5,2348.9,0.001]
[1770076262546,12.39037554,2349.5,2348.4,14.46588643]
[1770076263172,13.45444607,2349.5,2348.5,1.06450684]
[1770076263371,12.38927554,2349.3,2348.5,1.06450684]
[1770076263572,1.34544461,2349.4,2348.5,13.5728757]
[1770076263949,12.38927554,2349.4,2348.5,13.5728757]
[1770076269146,12.38927554,2349.4,2348.6,7.62779525]
[1770076269448,12.39037554,2349.5,2348.7,12.50836886]
[1770076269642,12.39037554,2349.5,2348.6,7.62779525]
[1770076269843,12.39037554,2349.5,2348.5,13.5728757]
[1770076270070,12.38927554,2349.3,2348.5,13.5728757]
[1770076271275,1.34543901,2349.4,2348.5,13.5728757]
[1770076271577,13.73471455,2349.4,2348.5,13.5728757]
[1770076274376,13.73471455,2349.4,2348.7,0.001]
[1770076274676,0.0011,2349.2,2348.7,0.001]
[1770076276474,12.39037554,2349.2,2348.7,0.001]
[1770076276778,0.0011,2349.2,2348.7,12.50936886]
[1770076276993,0.0011,2349.2,2348.7,13.86685643]
[1770076279890,0.0011,2349.2,2348.9,12.50836886]
[1770076281798,0.0011,2349.2,2348.9,13.57268221]
[1770076281972,0.0011,2349.2,2348.9,0.893]
[1770076282169,0.0011,2349.2,2348.7,1.35848757]
[1770076282370,0.0011,2349.2,2348.8,0.893]
[1770076288419,0.0011,2349.2,2349.0,0.001]
[1770076292526,0.0011,2349.2,2349.0,1.43040069]
[1770076292696,0.0011,2349.2,2349.0,0.001]
[1770076294820,12.66119159,2349.2,2348.7,0.001]
[1770076295023,12.66119159,2349.2,2348.5,0.001]
[1770076296926,13.72538954,2349.2,2348.5,0.001]
[1770076297752,1.37253895,2349.1,2348.5,0.001]
[1770076297935,12.66009159,2349.0,2348.5,0.001]
[1770076298525,12.66009159,2348.9,2348.0,0.893]
[1770076298827,13.72442233,2348.9,2348.0,0.893]
[1770076299006,12.66009159,2348.7,2348.0,0.893]
[1770076299205,12.66009159,2348.5,2348.0,0.893]
[1770076299925,12.66009159,2348.5,2347.8,1.39524697]
[1770076300924,12.66009159,2348.3,2347.8,1.39524697]
[1770076303731,14.00596942,2348.6,2347.8,13.72989409]
[1770076303732,2.12047643,2348.6,2347.8,13.72989409]
[1770076304029,12.66119159,2348.9,2348.1,12.33464712]
[1770076305427,13.72552412,2348.9,2348.1,12.33464712]
[1770076305627,13.72552412,2348.9,2347.9,12.33464712]
[1770076306209,13.72552412,2348.9,2347.9,13.39942228]
[1770076306411,12.66119159,2348.9,2347.9,13.39942228]
[1770076306612,14.03264245,2348.8,2348.0,12.33464712]
[1770076309306,15.09702206,2348.8,2347.8,1.39524697]
[1770076310325,15.09702206,2348.8,2347.8,14.06574225]
[1770076314044,11.76904311,2348.6,2347.8,1.39524697]
[1770076315441,11.76904311,2348.6,2348.0,0.001]
[1770076315740,11.76904311,2348.4,2348.0,0.001]
[1770076317123,1.93965506,2348.5,2348.0,12.67149528]
[1770076317343,14.2059847,2348.8,2348.0,12.67149528]
[1770076318320,13.14159397,2348.8,2348.0,12.67149528]
[1770076318524,1.37255086,2348.8,2348.1,12.67049528]
[1770076319451,13.14159397,2348.8,2348.1,12.67049528]
[1770076320144,1.37255086,2348.8,2348.1,12.67049528]
[1770076320343,12.83448613,2348.9,2348.1,14.80686862]
[1770076320546,12.83448613,2348.9,2348.0,12.67149528]
[1770076320745,11.77014311,2348.9,2348.0,12.67149528]
[1770076322350,12.8344826,2348.9,2348.0,12.67149528]
[1770076323452,12.68573265,2348.8,2348.0,12.67149528]
[1770076323747,1.37511721,2348.7,2348.0,12.67149528]
[1770076323953,13.14416032,2348.7,2348.0,0.001]
[1770076324173,11.76904311,2348.6,2348.0,0.001]
[1770076324537,12.83351323,2348.6,2348.0,0.001]
[1770076327352,11.76904311,2348.4,2347.8,1.39624697]
[1770076327553,11.76904311,2348.2,2347.8,1.39624697]
[1770076327940,1.26862866,2348.3,2347.8,1.39624697]
[1770076328146,12.83350952,2348.6,2347.8,14.06674225]
[1770076328339,0.91772081,2348.5,2347.8,15.13155716]
[1770076328569,13.29425416,2348.9,2348.1,12.67049528]
[1770076328570,12.83448794,2348.9,2348.1,12.67049528]
[1770076328742,0.91822044,2348.8,2348.1,12.67049528]
[1770076329072,11.76904311,2348.8,2348.1,12.67049528]
[1770076329365,13.0524919,2348.7,2348.0,0.001]
[1770076329571,11.77014311,2348.6,2348.0,0.001]
[1770076333388,11.77014311,2348.6,2348.0,12.67149528]
[1770076333389,0.0011,2348.6,2348.0,12.67149528]
[1770076335546,0.0011,2348.6,2348.0,13.73623107]
[1770076335876,0.0011,2348.6,2348.0,12.67149528]
[1770076336077,0.0011,2348.6,2348.1,14.80687101]
[1770076339277,0.0011,2348.6,2348.0,12.67149528]
[1770076339982,11.77014311,2348.6,2348.0,0.001]
[1770076343291,0.0011,2348.4,2348.0,0.001]
[1770076344496,0.0011,2348.4,2348.0,12.29637631]
[1770076352825,0.0011,2348.4,2348.0,0.001]